fUSD/lending_fUSD_20251201
["ID","MTS","AMOUNT","RATE_DAILY","PERIOD"]
[395228195,1764555048141,-250.0,0.0001699,2]
[395228196,1764555048149,-250.0,0.0001699,2]
[395228197,1764555048168,-250.0,0.0001699,2]
[395228198,1764555048180,-250.0,0.0001699,2]
[395228199,1764555048190,-250.0,0.0001699,2]
[395228200,1764555048199,-250.0,0.0001699,2]
[395228201,1764555048209,-250.0,0.0001699,2]
[395228202,1764555048219,-250.0,0.0001699,2]
[395228203,1764555048228,-250.0,0.0001699,2]
[395228204,1764555048237,-250.0,0.0001699,2]
[395228205,1764555048247,-250.0,0.0001699,2]
[395228206,1764555048257,-250.0,0.0001699,2]
[395228207,1764555048266,-250.0,0.0001699,2]
[395228208,1764555048276,-250.0,0.0001699,2]
[395228209,1764555048285,-250.0,0.0001699,2]
[395228210,1764555048295,-250.0,0.0001699,2]
[395228211,1764555048304,-250.0,0.0001699,2]
[395228212,1764555048313,-250.0,0.0001699,2]
[395228213,1764555048323,-250.0,0.0001699,2]
[395228214,1764555048332,-250.0,0.0001699,2]
[395228215,1764555048341,-250.0,0.0001699,2]
[395228216,1764555048351,-474.49286479,0.0001699,2]
[395228217,1764555048360,-474.49286479,0.0001699,2]
[395228218,1764555048369,-1000.0,0.00016991,2]
[395228219,1764555048378,-1413.11896092,0.00016992,2]
[395228220,1764555048388,-4211.77765298,0.00016992,2]
[395228221,1764555048398,-151.0,0.00016996,2]
[395228222,1764555048407,-151.0,0.00016996,2]
[395228223,1764555048416,-151.0,0.00016997,2]
[395228224,1764555048426,-509.6649128,0.00016998,2]
[395228225,1764555048435,-438554.0616805,0.00016999,2]
[395228226,1764555048444,-2705.3085799,0.00016999,2]
[395228227,1764555048453,-1971.1686567,0.00016999,2]
[395228228,1764555048463,-251599.0071132,0.00016999,2]
[395228229,1764555050105,-577.91366702,0.00016593,2]
[395228230,1764555050520,-1546.69721641,0.00016593,2]
[395228231,1764555050779,-593.38911657,0.00016593,2]
[395228232,1764555050788,-500.0,0.00016973,2]
[395228233,1764555050797,-271.22088343,0.00016973,2]
[395228238,1764555107997,1000.0,0.000136,4]
[395228339,1764556107921,326.33432394,0.000246,120]
[395228347,1764556191186,233.77,6.317e-05,2]
[395228360,1764556231699,-426.9637398,0.00012777,2]
[395228361,1764556231709,-999.0,0.00012786,3]
[395228362,1764556231718,-500.0,0.00012842,2]
[395228363,1764556231728,-250.0,0.00012864,2]
[395228364,1764556231739,-1000.0,0.00012942,2]
[395228365,1764556231752,-221.53,0.00012942,2]
[395228366,1764556231761,-250.0,0.00013037,2]
[395228367,1764556231771,-500.0,0.00013108,2]
[395228368,1764556231781,-300.0,0.00013265,2]
[395228369,1764556231791,-1200.0,0.00013265,2]
[395228370,1764556231801,-150.0,0.00013265,2]
[395228371,1764556231810,-240.89357837,0.00013266,2]
[395228372,1764556231820,-500.0,0.00013266,2]
[395228373,1764556231829,-298.38989024,0.00013266,2]
[395228374,1764556231839,-500.0,0.00013266,2]
[395228375,1764556231849,-254.2354212,0.00013266,2]
[395228376,1764556231859,-440.30803362,0.00013266,2]
[395228377,1764556231868,-1200.0,0.00013266,2]
[395228378,1764556231877,-150.0,0.00013266,2]
[395228379,1764556231886,-14066.23942183,0.00013267,2]
[395228380,1764556231899,-1272.87769172,0.00013267,2]
[395228382,1764556231919,-453.35372761,0.00013267,2]
[395228384,1764556231934,-6042.83991195,0.00013267,2]
[395228387,1764556231949,-674.59208033,0.00013267,2]
[395228396,1764556236435,170.01,0.00012713,2]
[395228397,1764556236461,231.4044,0.00012713,2]
[395228398,1764556237846,-2265.571181,0.00012713,2]
[395228399,1764556237855,-165.17571192,0.00013265,2]
[395228400,1764556237865,-160.26046524,0.00013265,2]
[395228401,1764556237874,-500.0,0.00013265,2]
[395228402,1764556237883,-33.60920375,0.00013265,2]
[395228403,1764556237954,-466.39079625,0.00013265,2]
[395228404,1764556237963,-500.0,0.00013265,2]
[395228405,1764556237972,-500.0,0.00013265,2]
[395228406,1764556237981,-500.0,0.00013265,2]
[395228407,1764556237991,-500.0,0.00013265,2]
[395228408,1764556238001,-500.0,0.00013265,2]
[395228409,1764556238010,-500.0,0.00013265,2]
[395228410,1764556238019,-500.0,0.00013265,2]
[395228411,1764556238029,-500.0,0.00013265,2]
[395228412,1764556238038,-500.0,0.00013265,2]
[395228413,1764556238048,-500.0,0.00013265,2]
[395228414,1764556238057,-500.0,0.00013265,2]
[395228415,1764556238067,-500.0,0.00013265,2]
[395228416,1764556238078,-500.0,0.00013265,2]
[395228417,1764556238087,-500.0,0.00013265,2]
[395228418,1764556238096,-500.0,0.00013265,2]
[395228419,1764556238105,-500.0,0.00013265,2]
[395228420,1764556238114,-500.0,0.00013265,2]
[395228422,1764556238128,-500.0,0.00013265,2]
[395228424,1764556238136,-500.0,0.00013265,2]
[395228426,1764556238146,-500.0,0.00013265,2]
[395228427,1764556238155,-500.0,0.00013265,2]
[395228428,1764556238165,-500.0,0.00013265,2]
[395228429,1764556238174,-500.0,0.00013265,2]
[395228430,1764556238183,-500.0,0.00013265,2]
[395228431,1764556238193,-500.0,0.00013265,2]
[395228432,1764556238203,-613.30466958,0.00013265,2]
[395228433,1764556238213,-500.0,0.00013265,2]
[395228434,1764556238222,-54828.18346093,0.00013267,2]
[395228436,1764556238232,-170.060012,0.0001331,2]
[395228438,1764556238242,-250.0,0.00013371,2]
[395228440,1764556238251,-250.0,0.000134,2]
[395228441,1764556238259,-250.0,0.000134,2]
[395228443,1764556238269,-250.0,0.000134,2]
[395228445,1764556238278,-250.0,0.000134,2]
[395228447,1764556238287,-250.0,0.000134,2]
[395228449,1764556238297,-250.0,0.000134,2]
[395228451,1764556238306,-250.0,0.000134,2]
[395228452,1764556238315,-250.0,0.000134,2]
[395228454,1764556238324,-250.0,0.000134,2]
[395228456,1764556238334,-250.0,0.000134,2]
[395228458,1764556238343,-250.0,0.000134,2]
[395228460,1764556238352,-250.0,0.000134,2]
[395228462,1764556238361,-250.0,0.000134,2]
[395228463,1764556238371,-250.0,0.000134,2]
[395228465,1764556238380,-250.0,0.000134,2]
[395228467,1764556238389,-250.0,0.000134,2]
[395228469,1764556238398,-250.0,0.000134,2]
[395228470,1764556238408,-250.0,0.000134,2]
[395228472,1764556238417,-203.9,0.000134,2]
[395228474,1764556238426,-151.0,0.00013406,2]
[395228476,1764556238436,-760000.0,0.00013409,2]
[395228477,1764556238446,-4087.7834,0.0001341,2]
[395228479,1764556238455,-7759.6863,0.0001341,2]
[395228481,1764556238465,-2219.3153,0.0001341,2]
[395228483,1764556238474,-1000.0,0.00013497,2]
[395228485,1764556238483,-2500.0,0.00013497,2]
[395228487,1764556238493,-2629.177,0.00013497,2]
[395228489,1764556238503,-165.77,0.00013497,2]
[395228491,1764556238512,-263.2,0.00013498,2]
[395228493,1764556238521,-37038.67857751,0.00013498,2]
[395228494,1764556238530,-151.0,0.00013507,2]
[395228496,1764556238540,-41544.77,0.00013509,2]
[395228498,1764556238550,-9999.99,0.00013509,2]
[395228500,1764556238559,-150.99,0.00013509,2]
[395228502,1764556238569,-1301.48,0.0001351,2]
[395228504,1764556238578,-500.0,0.0001351,2]
[395228506,1764556238587,-500.0,0.0001351,2]
[395228507,1764556238596,-500.0,0.0001351,2]
[395228509,1764556238605,-500.0,0.0001351,2]
[395228511,1764556238614,-500.0,0.0001351,2]
[395228513,1764556238623,-500.0,0.0001351,2]
[395228515,1764556238631,-500.0,0.0001351,2]
[395228517,1764556238640,-500.0,0.0001351,2]
[395228518,1764556238649,-500.0,0.0001351,2]
[395228520,1764556238658,-500.0,0.0001351,2]
[395228522,1764556238667,-500.0,0.0001351,2]
[395228524,1764556238676,-500.0,0.0001351,2]
[395228525,1764556238685,-500.0,0.0001351,2]
[395228527,1764556238695,-500.0,0.0001351,2]
[395228529,1764556238704,-500.0,0.0001351,2]
[395228531,1764556238713,-500.0,0.0001351,2]
[395228533,1764556238722,-500.0,0.0001351,2]
[395228535,1764556238731,-500.0,0.0001351,2]
[395228537,1764556238741,-500.0,0.0001351,2]
[395228538,1764556238750,-500.0,0.0001351,2]
[395228540,1764556238759,-5600.73,0.0001351,2]
[395228542,1764556238768,-499.99,0.0001351,2]
[395228544,1764556238778,-151.0,0.00013589,2]
[395228546,1764556238788,-151.0,0.00013589,2]
[395228548,1764556238800,-151.0,0.00013589,2]
[395228550,1764556238817,-151.0,0.00013589,2]
[395228552,1764556238826,-151.0,0.00013589,2]
[395228554,1764556238835,-151.0,0.00013589,2]
[395228556,1764556238845,-151.0,0.00013589,2]
[395228558,1764556238855,-151.0,0.00013589,2]
[395228560,1764556238864,-151.0,0.00013589,2]
[395228562,1764556238873,-151.0,0.00013589,2]
[395228564,1764556238883,-151.0,0.00013589,2]
[395228565,1764556238892,-151.0,0.00013589,2]
[395228567,1764556238902,-151.0,0.00013589,2]
[395228569,1764556238911,-151.0,0.00013589,2]
[395228571,1764556238920,-151.0,0.00013589,2]
[395228573,1764556238929,-151.0,0.00013589,2]
[395228575,1764556238939,-151.0,0.00013589,2]
[395228577,1764556238948,-151.0,0.00013589,2]
[395228579,1764556238957,-151.0,0.00013589,2]
[395228580,1764556238967,-500.0,0.00013589,2]
[395228582,1764556238977,-151.0,0.00013589,2]
[395228584,1764556238986,-500.0,0.00013589,2]
[395228586,1764556238995,-500.0,0.00013589,2]
[395228588,1764556239005,-500.0,0.00013589,2]
[395228590,1764556239014,-500.0,0.00013589,2]
[395228592,1764556239023,-500.0,0.00013589,2]
[395228593,1764556239033,-500.0,0.00013589,2]
[395228595,1764556239045,-500.0,0.00013589,2]
[395228597,1764556239054,-500.0,0.00013589,2]
[395228599,1764556239063,-500.0,0.00013589,2]
[395228601,1764556239072,-500.0,0.00013589,2]
[395228603,1764556239081,-500.0,0.00013589,2]
[395228605,1764556239090,-500.0,0.00013589,2]
[395228606,1764556239099,-500.0,0.00013589,2]
[395228608,1764556239109,-500.0,0.00013589,2]
[395228610,1764556239120,-500.0,0.00013589,2]
[395228612,1764556239132,-500.0,0.00013589,2]
[395228614,1764556239142,-500.0,0.00013589,2]
[395228616,1764556239151,-500.0,0.00013589,2]
[395228618,1764556239163,-500.0,0.00013589,2]
[395228619,1764556239172,-500.0,0.00013589,2]
[395228621,1764556239181,-500.0,0.00013589,2]
[395228623,1764556239190,-500.0,0.00013589,2]
[395228625,1764556239200,-500.0,0.00013589,2]
[395228627,1764556239210,-500.0,0.00013589,2]
[395228629,1764556239220,-500.0,0.00013589,2]
[395228630,1764556239230,-200.0,0.00013589,2]
[395228632,1764556239241,-500.0,0.00013589,2]
[395228634,1764556239251,-200.0,0.00013589,2]
[395228636,1764556239260,-200.0,0.00013589,2]
[395228638,1764556239270,-151.0,0.00013589,2]
[395228640,1764556239279,-151.0,0.00013589,2]
[395228641,1764556239288,-151.0,0.00013589,2]
[395228643,1764556239299,-151.0,0.00013589,2]
[395228645,1764556239309,-151.0,0.00013589,2]
[395228647,1764556239318,-151.0,0.00013589,2]
[395228649,1764556239327,-151.0,0.00013589,2]
[395228651,1764556239336,-151.0,0.00013589,2]
[395228653,1764556239345,-151.0,0.00013589,2]
[395228654,1764556239354,-151.0,0.00013589,2]
[395228656,1764556239363,-151.0,0.00013589,2]
[395228658,1764556239372,-151.0,0.00013589,2]
[395228660,1764556239381,-151.0,0.00013589,2]
[395228662,1764556239391,-5334.1441,0.00013598,2]
[395228663,1764556239400,-33403.7185,0.0001361,2]
[395228665,1764556239409,-1000.0,0.0001361,2]
[395228667,1764556239419,-3012.1267,0.0001361,2]
[395228669,1764556239429,-221.53,0.00013661,2]
[395228671,1764556239439,-500.0,0.00013698,2]
[395228673,1764556239449,-500.0,0.00013698,2]
[395228675,1764556239458,-500.0,0.00013698,2]
[395228677,1764556239467,-500.0,0.00013698,2]
[395228678,1764556239477,-500.0,0.00013698,2]
[395228680,1764556239486,-500.0,0.00013698,2]
[395228682,1764556239495,-500.0,0.00013698,2]
[395228684,1764556239504,-500.0,0.00013698,2]
[395228686,1764556239514,-500.0,0.00013698,2]
[395228688,1764556239523,-500.0,0.00013698,2]
[395228689,1764556239532,-500.0,0.00013698,2]
[395228691,1764556239541,-500.0,0.00013698,2]
[395228693,1764556239550,-500.0,0.00013698,2]
[395228695,1764556239559,-500.0,0.00013698,2]
[395228697,1764556239568,-500.0,0.00013698,2]
[395228699,1764556239578,-500.0,0.00013698,2]
[395228701,1764556239586,-500.0,0.00013698,2]
[395228702,1764556239596,-500.0,0.00013698,2]
[395228704,1764556239605,-500.0,0.00013698,2]
[395228706,1764556239614,-500.0,0.00013698,2]
[395228708,1764556239623,-500.0,0.00013698,2]
[395228710,1764556239632,-624.18148176,0.00013698,2]
[395228712,1764556239641,-500.0,0.00013698,2]
[395228714,1764556239651,-500.0,0.00013698,2]
[395228715,1764556239660,-500.0,0.00013698,2]
[395228717,1764556239670,-500.0,0.00013698,2]
[395228719,1764556239679,-500.0,0.00013698,2]
[395228721,1764556239688,-348.16711536,0.00013698,2]
[395228723,1764556239697,-1000.0,0.00013698,2]
[395228726,1764556239707,-1000.0,0.00013698,2]
[395228730,1764556239716,-1000.0,0.00013698,2]
[395228734,1764556239725,-1000.0,0.00013698,2]
[395228737,1764556239734,-1000.0,0.00013698,2]
[395228741,1764556239744,-1000.0,0.00013698,2]
[395228745,1764556239754,-1000.0,0.00013698,2]
[395228749,1764556239763,-1000.0,0.00013698,2]
[395228753,1764556239772,-1000.0,0.00013698,2]
[395228757,1764556239781,-1000.0,0.00013698,2]
[395228761,1764556239790,-1000.0,0.00013698,2]
[395228763,1764556239800,-573.9,0.00013698,2]
[395228766,1764556239809,-500.0,0.00013698,2]
[395228769,1764556239818,-500.0,0.00013698,2]
[395228771,1764556239827,-500.0,0.00013698,2]
[395228773,1764556239836,-500.0,0.00013698,2]
[395228775,1764556239845,-500.0,0.00013698,2]
[395228777,1764556239854,-540.21744354,0.00013698,2]
[395228778,1764556239863,-500.0,0.00013698,2]
[395228780,1764556239871,-500.0,0.00013698,2]
[395228782,1764556239880,-500.0,0.00013698,2]
[395228784,1764556239889,-500.0,0.00013698,2]
[395228786,1764556239898,-500.0,0.00013698,2]
[395228788,1764556239907,-500.0,0.00013698,2]
[395228790,1764556239917,-500.0,0.00013698,2]
[395228791,1764556239926,-500.0,0.00013698,2]
[395228793,1764556239935,-500.0,0.00013698,2]
[395228795,1764556239944,-484.18397562,0.00013698,2]
[395228797,1764556239953,-500.0,0.00013698,2]
[395228799,1764556239962,-500.0,0.00013698,2]
[395228801,1764556239971,-559.01212268,0.00013698,2]
[395228803,1764556239980,-500.0,0.00013698,2]
[395228805,1764556239989,-500.0,0.00013698,2]
[395228806,1764556239998,-500.0,0.00013698,2]
[395228808,1764556240007,-500.0,0.00013698,2]
[395228810,1764556240016,-500.0,0.00013698,2]
[395228812,1764556240025,-500.0,0.00013698,2]
[395228814,1764556240034,-500.0,0.00013698,2]
[395228816,1764556240044,-500.0,0.00013698,2]
[395228818,1764556240052,-500.0,0.00013698,2]
[395228820,1764556240062,-500.0,0.00013698,2]
[395228821,1764556240071,-500.0,0.00013698,2]
[395228823,1764556240080,-593.21617524,0.00013698,2]
[395228825,1764556240089,-500.0,0.00013698,2]
[395228827,1764556240099,-500.0,0.00013698,2]
[395228829,1764556240109,-501.94091737,0.00013698,2]
[395228831,1764556240119,-500.0,0.00013698,2]
[395228833,1764556240130,-500.0,0.00013698,2]
[395228835,1764556240140,-500.0,0.00013698,2]
[395228837,1764556240149,-349.89110636,0.00013698,2]
[395228839,1764556240159,-515.58654802,0.00013698,2]
[395228840,1764556240168,-500.0,0.00013698,2]
[395228842,1764556240177,-500.0,0.00013698,2]
[395228844,1764556240186,-500.0,0.00013698,2]
[395228846,1764556240197,-500.0,0.00013698,2]
[395228848,1764556240206,-500.0,0.00013698,2]
[395228850,1764556240215,-500.0,0.00013698,2]
[395228852,1764556240225,-1639.03,0.00013698,2]
[395228854,1764556240234,-1639.03,0.00013698,2]
[395228855,1764556240243,-1639.03,0.00013698,2]
[395228857,1764556240253,-1639.03,0.00013698,2]
[395228859,1764556240262,-1639.03,0.00013698,2]
[395228861,1764556240272,-1639.03,0.00013698,2]
[395228863,1764556240282,-1639.03,0.00013698,2]
[395228865,1764556240291,-1639.03,0.00013698,2]
[395228867,1764556240301,-1639.03,0.00013698,2]
[395228869,1764556240311,-1639.03,0.00013698,2]
[395228871,1764556240320,-1639.03,0.00013698,2]
[395228873,1764556240330,-1639.03,0.00013698,2]
[395228874,1764556240340,-1639.03,0.00013698,2]
[395228876,1764556240349,-1639.03,0.00013698,2]
[395228878,1764556240359,-1639.03,0.00013698,2]
[395228880,1764556240368,-1639.03,0.00013698,2]
[395228882,1764556240378,-1639.03,0.00013698,2]
[395228884,1764556240388,-1639.03,0.00013698,2]
[395228885,1764556240397,-1639.03,0.00013698,2]
[395228887,1764556240407,-1639.03,0.00013698,2]
[395228889,1764556240416,-1639.03,0.00013698,2]
[395228891,1764556240426,-1639.03,0.00013698,2]
[395228893,1764556240435,-500.0,0.00013698,2]
[395228895,1764556240444,-1639.03,0.00013698,2]
[395228896,1764556240453,-500.0,0.00013698,2]
[395228897,1764556240464,-1639.22377214,0.00013698,2]
[395228898,1764556240472,-500.0,0.00013698,2]
[395228899,1764556240482,-232.46,0.00013699,2]
[395228900,1764556240491,-600.0,0.00013699,2]
[395228901,1764556240500,-275.83876883,0.00013699,2]
[395228902,1764556240510,-500.0,0.00013699,2]
[395228903,1764556240519,-251.04729167,0.00013699,2]
[395228904,1764556240528,-929.16,0.000137,2]
[395228905,1764556240538,-929.16,0.000137,2]
[395228906,1764556240547,-567.86060721,0.0001371,2]
[395228907,1764556240557,-500.0,0.0001371,2]
[395228908,1764556240566,-500.0,0.0001371,2]
[395228909,1764556240576,-500.0,0.0001371,2]
[395228910,1764556240585,-1301.48,0.00013784,2]
[395228911,1764556240595,-500.0,0.0001381,2]
[395228912,1764556240604,-547.41803348,0.0001381,2]
[395228913,1764556240613,-500.0,0.0001381,2]
[395228914,1764556240622,-500.0,0.0001381,2]
[395228915,1764556240631,-500.0,0.0001381,2]
[395228916,1764556240641,-500.0,0.0001381,2]
[395228917,1764556240650,-386.00822049,0.0001381,2]
[395228918,1764556240659,-500.0,0.0001381,2]
[395228919,1764556240668,-500.0,0.0001381,2]
[395228920,1764556240677,-500.0,0.0001381,2]
[395228921,1764556240686,-333.85230808,0.0001381,2]
[395228922,1764556240695,-500.0,0.0001381,2]
[395228923,1764556240705,-500.0,0.0001381,2]
[395228924,1764556240714,-500.0,0.0001381,2]
[395228925,1764556240723,-500.0,0.0001381,2]
[395228926,1764556240731,-500.0,0.0001381,2]
[395228927,1764556240740,-500.0,0.0001381,2]
[395228928,1764556240750,-500.0,0.0001381,2]
[395228929,1764556240759,-500.0,0.0001381,2]
[395228930,1764556240768,-500.0,0.0001381,2]
[395228931,1764556240777,-500.0,0.0001381,2]
[395228933,1764556240787,-500.0,0.0001381,2]
[395228934,1764556240797,-3756.14053802,0.00013851,2]
[395228936,1764556240806,-37038.67857742,0.00013876,2]
[395228937,1764556240815,-712.0,0.00013898,2]
[395228939,1764556240825,-966.0,0.00013994,2]
[395228941,1764556240835,-300.0,0.00013994,2]
[395228942,1764556240845,-300.0,0.00013994,2]
[395228945,1764556240854,-300.0,0.00013994,2]
[395228947,1764556240864,-300.0,0.00013994,2]
[395228949,1764556240873,-325.85784099,0.00013994,2]
[395228951,1764556240882,-195.0,0.00013994,2]
[395228953,1764556240891,-189.44,0.00014037,2]
[395228955,1764556240900,-1301.48,0.00014058,2]
[395228957,1764556240909,-195.0,0.00014065,2]
[395228959,1764556240917,-250.0,0.00014065,2]
[395228961,1764556240926,-300.0,0.00014065,2]
[395228963,1764556240935,-300.0,0.00014065,2]
[395228965,1764556240945,-300.0,0.00014065,2]
[395228967,1764556240956,-300.0,0.00014065,2]
[395228969,1764556240965,-300.0,0.00014065,2]
[395228970,1764556240975,-200.0,0.00014137,2]
[395228972,1764556240984,-500.0,0.00014137,2]
[395228975,1764556240994,-200.0,0.00014137,2]
[395228977,1764556241002,-500.0,0.00014223,2]
[395228978,1764556241011,-500.0,0.00014223,2]
[395228981,1764556241021,-195.0,0.00014236,2]
[395228982,1764556241030,-184.6672027,0.00014244,2]
[395228984,1764556241039,-600.0,0.00014247,2]
[395228986,1764556241048,-37038.67857742,0.00014254,2]
[395228988,1764556241057,-1301.48,0.00014332,2]
[395228991,1764556241066,-500.0,0.00014373,2]
[395228992,1764556241076,-500.0,0.00014373,2]
[395228994,1764556241085,-500.0,0.00014373,2]
[395228996,1764556241094,-500.0,0.00014373,2]
[395228998,1764556241104,-500.0,0.00014373,2]
[395229001,1764556241114,-500.59401811,0.00014373,2]
[395229003,1764556241127,-500.0,0.00014373,2]
[395229005,1764556241136,-295.21198684,0.00014373,2]
[395229006,1764556241144,-500.0,0.00014373,2]
[395229008,1764556241153,-500.0,0.00014373,2]
[395229011,1764556241164,-500.0,0.00014373,2]
[395229012,1764556241173,-500.0,0.00014373,2]
[395229014,1764556241182,-500.0,0.00014373,2]
[395229016,1764556241191,-500.0,0.00014373,2]
[395229018,1764556241200,-500.0,0.00014373,2]
[395229021,1764556241212,-500.0,0.00014373,2]
[395229022,1764556241221,-503.29972338,0.00014373,2]
[395229024,1764556241231,-500.0,0.00014373,2]
[395229026,1764556241240,-500.0,0.00014373,2]
[395229028,1764556241249,-500.0,0.00014373,2]
[395229030,1764556241258,-500.0,0.00014373,2]
[395229032,1764556241267,-500.0,0.00014373,2]
[395229034,1764556241276,-500.0,0.00014373,2]
[395229037,1764556241286,-500.0,0.00014373,2]
[395229038,1764556241295,-164.88068928,0.00014373,2]
[395229041,1764556241306,-500.0,0.00014373,2]
[395229043,1764556241316,-500.0,0.00014373,2]
[395229044,1764556241325,-255.0,0.00014379,2]
[395229046,1764556241334,-221.53,0.0001438,2]
[395229049,1764556241344,-2476.70565861,0.0001439,2]
[395229050,1764556241353,-151.0,0.00014521,2]
[395229052,1764556241362,-420.0,0.00014543,2]
[395229085,1764556241646,-271.0,0.00014544,2]
[395229087,1764556241656,-1000.0,0.0001456,2]
[395229089,1764556241666,-1680.0,0.00014591,2]
[395229091,1764556241676,-1707.88408992,0.000146,2]
[395229093,1764556241685,-1301.48,0.00014606,2]
[395229095,1764556241695,-37038.67857742,0.00014632,2]
[395229097,1764556241703,-200.0,0.00014685,2]
[395229099,1764556241713,-500.0,0.00014685,2]
[395229101,1764556241722,-200.0,0.00014685,2]
[395229103,1764556241732,-600.0,0.00014795,2]
[395229105,1764556241741,-1301.48,0.0001488,2]
[395229108,1764556241750,-170.060012,0.000149,2]
[395229110,1764556241759,-1008.35390567,0.00014921,2]
[395229112,1764556241769,-536.01756755,0.00014921,2]
[395229114,1764556241779,-507.34097889,0.00014921,2]
[395229116,1764556241788,-1009.2603075,0.00014921,2]
[395229118,1764556241796,-1000.0,0.00014921,2]
[395229119,1764556241805,-1000.0,0.00014921,2]
[395229121,1764556241814,-1001.00569167,0.00014921,2]
[395229124,1764556241825,-1000.0,0.00014921,2]
[395229125,1764556241834,-1000.0,0.00014921,2]
[395229127,1764556241844,-1000.0,0.00014921,2]
[395229130,1764556241854,-1000.0,0.00014921,2]
[395229132,1764556241863,-1000.0,0.00014921,2]
[395229134,1764556241873,-1000.0,0.00014921,2]
[395229136,1764556241884,-481.4168575,0.00014921,2]
[395229137,1764556241893,-1000.0,0.00014921,2]
[395229140,1764556241903,-1000.0,0.00014921,2]
[395229142,1764556241911,-1000.0,0.00014921,2]
[395229144,1764556241921,-1000.0,0.00014921,2]
[395229146,1764556241930,-159.45765875,0.00014921,2]
[395229148,1764556241940,-1000.0,0.00014921,2]
[395229150,1764556241948,-500.8341776,0.00014921,2]
[395229152,1764556241958,-1000.0,0.00014921,2]
[395229154,1764556241967,-1000.0,0.00014921,2]
[395229156,1764556241976,-138552.06002265,0.00015,4]
[395229157,1764556241984,-10006.51407668,0.00015,2]
[395229159,1764556241993,-151.0,0.00015007,2]
[395229161,1764556242003,-37038.67857742,0.0001501,2]
[395229163,1764556242012,-151.0,0.00015069,2]
[395229165,1764556242021,-221.53,0.00015099,2]
[395229167,1764556242030,-500.0,0.00015127,2]
[395229170,1764556242040,-500.0,0.00015127,2]
[395229171,1764556242049,-1301.48,0.00015154,2]
[395229173,1764556242058,-200.0,0.00015233,2]
[395229175,1764556242067,-500.0,0.00015233,2]
[395229177,1764556242076,-200.0,0.00015233,2]
[395229179,1764556242085,-150.0,0.00015288,2]
[395229181,1764556242094,-152.44390529,0.00015288,2]
[395229183,1764556242103,-150.00000001,0.00015288,2]
[395229185,1764556242112,-150.0,0.00015288,2]
[395229187,1764556242124,-214.27357495,0.00015288,2]
[395229189,1764556242134,-150.0,0.00015288,2]
[395229192,1764556242143,-150.0,0.00015288,2]
[395229193,1764556242152,-150.0,0.00015288,2]
[395229196,1764556242163,-150.0,0.00015288,2]
[395229198,1764556242173,-150.0,0.00015288,2]
[395229199,1764556242183,-150.0,0.00015288,2]
[395229202,1764556242193,-150.0,0.00015288,2]
[395229203,1764556242203,-150.0,0.00015288,2]
[395229205,1764556242213,-150.0,0.00015288,2]
[395229207,1764556242222,-190.82998658,0.00015288,2]
[395229210,1764556242231,-150.0,0.00015288,2]
[395229212,1764556242240,-150.0,0.00015288,2]